fUSD/lending_fUSD_20260121
["ID","MTS","AMOUNT","RATE_DAILY","PERIOD"]
[402938767,1768999833706,-500.0,0.00016772,2]
[402938768,1768999833716,-500.0,0.00016772,2]
[402938769,1768999833727,-398.33696182,0.00016772,2]
[402938770,1768999833736,-897.86,0.00016772,2]
[402938771,1768999833746,-500.0,0.00016773,2]
[402938772,1768999833758,-500.0,0.00016773,2]
[402938773,1768999833768,-500.0,0.00016773,2]
[402938774,1768999833778,-500.0,0.00016773,2]
[402938775,1768999833789,-159.97225362,0.00016773,2]
[402938776,1768999833800,-159.97493283,0.00016773,2]
[402938777,1768999833811,-500.0,0.00016773,2]
[402938778,1768999833821,-500.0,0.00016773,2]
[402938779,1768999833831,-159.97595991,0.00016773,2]
[402938780,1768999833840,-162.21798598,0.00016773,2]
[402938781,1768999833849,-163.83030437,0.00016773,2]
[402938782,1768999833858,-565.73472704,0.00016773,2]
[402938783,1768999833867,-155.97300196,0.00016773,2]
[402938784,1768999833876,-500.0,0.00016773,2]
[402938785,1768999833886,-500.38390829,0.00016773,2]
[402938786,1768999833895,-504.64837745,0.00016773,2]
[402938787,1768999833904,-539.30849702,0.00016773,2]
[402938788,1768999833914,-500.0,0.00016773,2]
[402938789,1768999833923,-500.0,0.00016773,2]
[402938790,1768999833933,-500.0,0.00016773,2]
[402938791,1768999833943,-500.0,0.00016773,2]
[402938792,1768999833952,-500.0,0.00016773,2]
[402938793,1768999833962,-159.97439899,0.00016773,2]
[402938794,1768999833971,-399.79676637,0.00016773,2]
[402938795,1768999833980,-500.0,0.00016773,2]
[402938796,1768999833990,-500.0,0.00016773,2]
[402938797,1768999833999,-500.0,0.00016773,2]
[402938798,1768999834009,-500.0,0.00016773,2]
[402938799,1768999834019,-500.0,0.00016773,2]
[402938800,1768999834028,-500.0,0.00016773,2]
[402938801,1768999834038,-500.0,0.00016773,2]
[402938802,1768999834047,-448.01937776,0.00016773,2]
[402938803,1768999834056,-500.0,0.00016773,2]
[402938804,1768999834066,-500.0,0.00016773,2]
[402938805,1768999834075,-500.0,0.00016773,2]
[402938806,1768999834084,-301.50124689,0.00016773,2]
[402938807,1768999834094,-500.0,0.00016773,2]
[402938808,1768999834104,-500.0,0.00016773,2]
[402938809,1768999834115,-500.0,0.00016773,2]
[402938810,1768999834125,-500.0,0.00016773,2]
[402938811,1768999834136,-500.0,0.00016773,2]
[402938812,1768999834145,-500.0,0.00016773,2]
[402938813,1768999834154,-2500.0,0.00016773,2]
[402938814,1768999834164,-1681.69037107,0.00016773,2]
[402938815,1768999834173,-167.71513669,0.00016773,2]
[402938816,1768999834184,-4660.64649812,0.00016773,2]
[402938817,1768999834193,-166.66,0.00016775,2]
[402938818,1768999834203,-411.0,0.0001678,2]
[402938819,1768999834213,-994.0,0.00016786,2]
[402938820,1768999834223,-500.0,0.00016797,2]
[402938821,1768999834232,-500.0,0.00016797,2]
[402938822,1768999834241,-502.97030487,0.00016797,2]
[402938823,1768999834250,-500.0,0.00016797,2]
[402938824,1768999834259,-500.0,0.00016797,2]
[402938825,1768999834268,-500.0,0.00016797,2]
[402938826,1768999834277,-500.0,0.00016797,2]
[402938827,1768999834286,-500.0,0.00016797,2]
[402938828,1768999834296,-308.9838591,0.000168,2]
[402938829,1768999834306,-442.0,0.00016814,2]
[402938830,1768999834316,-911.0,0.00016819,2]
[402938831,1768999834325,-152.56,0.00016827,2]
[402938832,1768999834335,-1585.0,0.00016847,2]
[402938833,1768999834344,-1750.0,0.00016853,2]
[402938834,1768999834353,-255.0,0.00016855,2]
[402938835,1768999834362,-2455.5,0.00016863,2]
[402938836,1768999834371,-2455.5,0.00016863,2]
[402938837,1768999834380,-2455.5,0.00016863,2]
[402938838,1768999834389,-2455.5,0.00016863,2]
[402938839,1768999834398,-2455.5,0.00016863,2]
[402938840,1768999834412,-165.18,0.00016863,2]
[402938841,1768999834421,-473.60264297,0.00016872,2]
[402938842,1768999834431,-602.93341846,0.00016872,2]
[402938843,1768999834440,-500.0,0.00016872,2]
[402938844,1768999834451,-248.64134578,0.00016872,2]
[402938845,1768999834460,-500.0,0.00016872,2]
[402938846,1768999834469,-303.53991575,0.00016872,2]
[402938847,1768999834479,-167.22190735,0.00016872,2]
[402938848,1768999834489,-500.0,0.00016872,2]
[402938849,1768999834499,-500.0,0.00016872,2]
[402938850,1768999834508,-549.29458901,0.00016872,2]
[402938851,1768999834517,-500.0,0.00016872,2]
[402938852,1768999834526,-500.0,0.00016872,2]
[402938853,1768999834535,-500.0,0.00016872,2]
[402938854,1768999834544,-500.0,0.00016872,2]
[402938855,1768999834554,-500.0,0.00016872,2]
[402938856,1768999834564,-382.62856246,0.00016872,2]
[402938857,1768999834572,-500.0,0.00016872,2]
[402938858,1768999834581,-500.0,0.00016872,2]
[402938859,1768999834591,-500.0,0.00016872,2]
[402938860,1768999834600,-500.0,0.00016872,2]
[402938861,1768999834608,-500.0,0.00016872,2]
[402938862,1768999834618,-500.0,0.00016872,2]
[402938863,1768999834627,-500.0,0.00016872,2]
[402938864,1768999834635,-195.85504211,0.00016872,2]
[402938865,1768999834644,-500.0,0.00016872,2]
[402938866,1768999834654,-500.0,0.00016872,2]
[402938867,1768999834662,-500.0,0.00016872,2]
[402938868,1768999834671,-500.0,0.00016872,2]
[402938869,1768999834681,-500.0,0.00016872,2]
[402938870,1768999834690,-500.0,0.00016872,2]
[402938871,1768999834699,-589.03869133,0.00016872,2]
[402938872,1768999834708,-541.65463372,0.00016872,2]
[402938873,1768999834717,-508.23761402,0.00016872,2]
[402938874,1768999834726,-2091.50989055,0.00016873,2]
[402938875,1768999834741,-2637.88237455,0.00016873,2]
[402938876,1768999834752,-324.27327818,0.00016873,2]
[402938877,1768999834763,-253.75974854,0.00016873,2]
[402938878,1768999834774,-3767.42126143,0.00016873,2]
[402938879,1768999834785,-1597.20025249,0.00016873,2]
[402938880,1768999834804,-1011.42361408,0.00016873,2]
[402938887,1768999838336,-861.2,0.00016873,2]
[402938888,1768999838347,-49534.50000005,0.00016873,2]
[402938889,1768999838381,-457.04152083,0.00016873,2]
[402938890,1768999838392,-918.78,0.00016873,2]
[402938891,1768999838407,-936545.0080593,0.00016873,2]
[402938892,1768999838417,-345.45003606,0.00016873,2]
[402938893,1768999838427,-1058.0,0.00016881,2]
[402938894,1768999838436,-949.0,0.00016886,2]
[402938895,1768999838447,-1681.69037105,0.00016898,2]
[402938896,1768999838456,-4660.64649803,0.00016898,2]
[402938897,1768999838466,-1298.0,0.00016914,2]
[402938898,1768999838476,-1821.0,0.0001692,2]
[402938899,1768999838487,-253.0,0.00016948,2]
[402938900,1768999838497,-707.94215069,0.00016971,2]
[402938901,1768999838507,-869.43,0.00016973,2]
[402938902,1768999838516,-1548.0,0.00016981,2]
[402938903,1768999838526,-250.0,0.00016981,2]
[402938904,1768999838536,-2000.0,0.00016981,2]
[402938905,1768999838546,-1000.0,0.00016981,2]
[402938906,1768999838555,-250.0,0.00016981,2]
[402938907,1768999838565,-2000.0,0.00016981,2]
[402938908,1768999838575,-1000.0,0.00016981,2]
[402938909,1768999838584,-291.44933825,0.00016981,2]
[402938910,1768999838594,-2000.0,0.00016981,2]
[402938911,1768999838603,-1000.0,0.00016981,2]
[402938912,1768999838613,-500.0,0.00016981,2]
[402938913,1768999838622,-1000.0,0.00016981,2]
[402938914,1768999838630,-533.88981491,0.00016981,2]
[402938915,1768999838638,-1000.0,0.00016981,2]
[402938916,1768999838646,-1000.0,0.00016981,2]
[402938917,1768999838655,-500.0,0.00016981,2]
[402938918,1768999838663,-322.6107,0.00016981,2]
[402938919,1768999838673,-174.61919141,0.00016981,2]
[402938920,1768999838683,-2000.0,0.00016981,2]
[402938921,1768999838693,-250.0,0.00016981,2]
[402938922,1768999838703,-2000.0,0.00016981,2]
[402938923,1768999838713,-263.31471796,0.00016981,2]
[402938924,1768999838722,-315.22980601,0.00016981,2]
[402938925,1768999838731,-2000.0,0.00016981,2]
[402938926,1768999838741,-2000.0,0.00016981,2]
[402938927,1768999838750,-151.0,0.00016981,2]
[402938928,1768999838760,-2000.0,0.00016981,2]
[402938929,1768999838769,-303.07673906,0.00016981,2]
[402938930,1768999838779,-2000.0,0.00016981,2]
[402938931,1768999838788,-2000.0,0.00016981,2]
[402938932,1768999838798,-2000.0,0.00016981,2]
[402938933,1768999838806,-250.0,0.00016981,2]
[402938934,1768999839025,-2000.0,0.00016981,2]
[402938935,1768999839037,-250.0,0.00016981,2]
[402938936,1768999839047,-454.09835249,0.00016981,2]
[402938937,1768999839057,-250.0,0.00016981,2]
[402938938,1768999839066,-250.0,0.00016981,2]
[402938939,1768999839076,-250.0,0.00016981,2]
[402938940,1768999839085,-151.0,0.00016981,2]
[402938941,1768999839095,-250.0,0.00016981,2]
[402938942,1768999839104,-151.0,0.00016981,2]
[402938943,1768999839114,-250.0,0.00016981,2]
[402938944,1768999839124,-151.0,0.00016981,2]
[402938945,1768999839134,-250.0,0.00016981,2]
[402938946,1768999839144,-151.0,0.00016981,2]
[402938947,1768999839155,-250.0,0.00016981,2]
[402938948,1768999839164,-250.0,0.00016981,2]
[402938949,1768999839174,-151.0,0.00016981,2]
[402938950,1768999839185,-301.72135082,0.00016981,2]
[402938951,1768999839195,-151.0,0.00016981,2]
[402938952,1768999839206,-151.0,0.00016981,2]
[402938953,1768999839216,-151.0,0.00016981,2]
[402938954,1768999839226,-151.0,0.00016981,2]
[402938955,1768999839236,-500.0,0.00016981,2]
[402938956,1768999839245,-151.0,0.00016981,2]
[402938957,1768999839255,-500.0,0.00016981,2]
[402938958,1768999839264,-151.0,0.00016981,2]
[402938959,1768999839274,-515.99657842,0.00016981,2]
[402938960,1768999839283,-2567.0,0.00016981,2]
[402938961,1768999839293,-151.0,0.00016981,2]
[402938962,1768999839302,-151.0,0.00016981,2]
[402938963,1768999839311,-1518.84634261,0.00016981,2]
[402938964,1768999839321,-332.2,0.00016998,2]
[402938965,1768999839331,-250.0,0.00017,2]
[402938966,1768999839339,-1140.0,0.00017015,2]
[402938967,1768999839349,-1681.69037105,0.00017023,2]
[402938968,1768999839358,-4660.64649803,0.00017023,2]
[402938969,1768999839367,-897.86,0.00017045,2]
[402938970,1768999839376,-500.0,0.00017047,2]
[402938971,1768999839386,-705.0,0.00017048,2]
[402938972,1768999839395,-500.0,0.00017068,2]
[402938973,1768999839408,-202.22,0.00017104,2]
[402938974,1768999839417,-166.66,0.00017107,2]
[402938975,1768999839426,-553.43,0.00017112,2]
[402938976,1768999839436,-1681.69037105,0.00017149,2]
[402938977,1768999839447,-4660.64649803,0.00017149,2]
[402938978,1768999839466,-151.0,0.00017149,2]
[402938979,1768999839475,-713.86,0.00017244,2]
[402938980,1768999839484,-200.0,0.00017255,2]
[402938981,1768999839493,-1681.69037105,0.00017274,2]
[402938982,1768999839503,-4660.64649803,0.00017274,2]
[402938983,1768999839512,-443.0,0.00017283,2]
[402938984,1768999839522,-167.71513669,0.00017289,2]
[402938985,1768999839531,-897.86,0.00017319,2]
[402938986,1768999839541,-1000.0,0.00017321,2]
[402938987,1768999839550,-1000.0,0.00017321,2]
[402938988,1768999839559,-1004.10221386,0.00017321,2]
[402938989,1768999839568,-1000.0,0.00017321,2]
[402938990,1768999839577,-1000.0,0.00017321,2]
[402938991,1768999839586,-989.94559639,0.00017321,2]
[402938992,1768999839596,-500.0,0.00017321,2]
[402938993,1768999839605,-1000.0,0.00017321,2]
[402938994,1768999839615,-1000.0,0.00017321,2]
[402938995,1768999839624,-458.90134954,0.00017321,2]
[402938996,1768999839633,-1000.0,0.00017321,2]
[402938997,1768999839642,-1000.0,0.00017321,2]
[402938998,1768999839652,-500.0,0.00017321,2]
[402938999,1768999839661,-1681.69037105,0.00017399,2]
[402939000,1768999839670,-4660.64649803,0.00017399,2]
[402939001,1768999839679,-166.66,0.0001744,2]
[402939002,1768999839688,-995.28,0.00017461,2]
[402939003,1768999839698,-1681.69037105,0.00017524,2]
[402939004,1768999839707,-4660.64649803,0.00017524,2]
[402939005,1768999839718,-553.64373807,0.00017529,2]
[402939006,1768999839729,-282.49590349,0.00017529,2]
[402939007,1768999839739,-1395.0,0.00017548,2]
[402939008,1768999839747,-512.44990602,0.0001755,2]
[402939009,1768999839757,-1395.0,0.00017551,2]
[402939010,1768999839766,-150.0,0.00017577,2]
[402939011,1768999839776,-897.86,0.00017593,2]
[402939012,1768999839786,-500.0,0.00017595,2]
[402939013,1768999839795,-161.0,0.000176,2]
[402939014,1768999839805,-165.0,0.00017632,2]
[402939015,1768999839815,-464.0,0.00017636,2]
[402939016,1768999839825,-3811.05624658,0.0001764,2]
[402939017,1768999839837,-1681.69037105,0.0001765,2]
[402939018,1768999839847,-4660.64649803,0.0001765,2]
[402939019,1768999839856,-304.24866428,0.00017677,2]
[402939020,1768999839866,-500.0,0.00017686,2]
[402939021,1768999839875,-150.0,0.00017686,2]
[402939022,1768999839884,-500.0,0.00017686,2]
[402939023,1768999839893,-150.0,0.00017686,2]
[402939024,1768999839902,-500.0,0.00017686,2]
[402939025,1768999839911,-221.17629805,0.00017686,2]
[402939026,1768999839920,-1395.0,0.00017697,2]
[402939027,1768999839929,-1000.0,0.00017699,2]
[402939028,1768999839939,-1000.0,0.000177,2]
[402939029,1768999839948,-553.43,0.00017709,2]
[402939030,1768999839957,-1000.0,0.0001771,2]
[402939031,1768999839967,-1000.0,0.00017713,2]
[402939032,1768999839976,-1000.0,0.00017726,2]
[402939033,1768999839986,-1000.0,0.00017729,2]
[402939034,1768999839997,-1000.0,0.00017732,2]
[402939035,1768999840009,-1000.0,0.00017733,2]
[402939036,1768999840019,-500.0,0.00017741,2]
[402939037,1768999840028,-150.0,0.00017741,2]
[402939038,1768999840037,-500.0,0.00017741,2]
[402939039,1768999840047,-155.03086821,0.00017741,2]
[402939040,1768999840055,-500.0,0.00017741,2]
[402939041,1768999840065,-1000.0,0.00017754,2]
[402939042,1768999840074,-1000.0,0.00017765,2]
[402939043,1768999840083,-1681.69037105,0.00017775,2]
[402939044,1768999840092,-500.0,0.00017796,2]
[402939045,1768999840102,-500.0,0.00017796,2]
[402939046,1768999840111,-150.0,0.00017796,2]
[402939047,1768999840120,-509.99019321,0.00017796,2]
[402939048,1768999840129,-1000.0,0.000178,2]
[402939049,1768999840138,-167.71513669,0.00017804,2]
[402939050,1768999840147,-443.0,0.00017805,2]
[402939051,1768999840157,-200.0,0.0001781,2]
[402939052,1768999840166,-204.04236409,0.00017812,2]
[402939053,1768999840176,-150.0,0.00017813,2]
[402939054,1768999840185,-283.052,0.00017814,2]
[402939055,1768999840195,-2504.085,0.00017814,2]
[402939056,1768999840204,-221.23640684,0.00017816,2]
[402939057,1768999840214,-150.0,0.0001782,2]
[402939058,1768999840224,-1000.0,0.00017821,2]
[402939059,1768999840234,-1000.0,0.00017824,2]
[402939060,1768999840243,-1000.0,0.00017828,2]
[402939061,1768999840252,-200.0,0.00017829,2]
[402939062,1768999840261,-500.0,0.00017829,2]
[402939063,1768999840270,-500.0,0.00017829,2]
[402939064,1768999840280,-500.0,0.00017829,2]
[402939065,1768999840289,-507.08924967,0.00017829,2]
[402939066,1768999840298,-500.0,0.00017829,2]
[402939067,1768999840307,-500.0,0.00017829,2]
[402939068,1768999840317,-500.0,0.00017829,2]
[402939069,1768999840326,-1000.0,0.00017829,2]
[402939070,1768999840337,-1000.0,0.00017835,2]
[402939071,1768999840346,-1000.0,0.00017836,2]
[402939072,1768999840356,-1395.0,0.00017837,2]
[402939073,1768999840365,-1000.0,0.00017838,2]
[402939074,1768999840374,-150.00024902,0.00017841,2]
[402939075,1768999840384,-1000.0,0.00017849,2]
[402939076,1768999840393,-500.0,0.0001785,2]
[402939077,1768999840403,-500.0,0.0001785,2]
[402939078,1768999840414,-150.0,0.0001785,2]
[402939079,1768999840423,-1395.0,0.00017851,2]
[402939080,1768999840432,-1852.42,0.00017855,2]
[402939081,1768999840441,-897.86,0.00017867,2]
[402939082,1768999840450,-500.0,0.00017868,2]
[402939083,1768999840459,-1470.85523539,0.00017868,2]
[402939084,1768999840468,-501.96234831,0.00017868,2]
[402939085,1768999840476,-1500.0,0.00017868,2]
[402939086,1768999840486,-500.0,0.00017868,2]
[402939087,1768999840495,-1570.67630539,0.00017868,2]
[402939088,1768999840504,-1000.0,0.00017871,2]
[402939089,1768999840513,-1000.0,0.00017879,2]
[402939090,1768999840522,-150.0,0.00017882,2]
[402939091,1768999840531,-8635.3274,0.000179,2]
[402939092,1768999840539,-1681.69037105,0.000179,2]
[402939093,1768999840548,-1000.0,0.000179,2]
[402939094,1768999840557,-4689.44998792,0.000179,2]
[402939095,1768999840566,-742.1000514,0.000179,2]
[402939096,1768999840575,-247.25423334,0.000179,2]
[402939097,1768999840585,-250.00005406,0.000179,2]
[402939098,1768999840594,-11204.0,0.000179,2]
[402939099,1768999840604,-1000.0,0.00017903,2]
[402939100,1768999840613,-150.0,0.00017904,2]
[402939101,1768999840622,-500.0,0.00017905,2]
[402939102,1768999840632,-150.0,0.00017905,2]
[402939103,1768999840641,-500.0,0.00017905,2]
[402939104,1768999840650,-443.0,0.00017913,2]
[402939105,1768999840659,-200.0,0.00017914,2]
[402939106,1768999840669,-443.0,0.00017916,2]
[402939107,1768999840679,-1000.0,0.00017918,2]
[402939108,1768999840688,-1000.0,0.00017921,2]
[402939109,1768999840698,-1000.0,0.00017931,2]
[402939110,1768999840711,-795.95763591,0.00017931,2]
[402939111,1768999840721,-1395.0,0.00017942,2]
[402939112,1768999840731,-1000.0,0.00017944,2]
[402939113,1768999840740,-152.56,0.00017949,2]
[402939114,1768999840749,-150.0,0.00017958,2]
[402939115,1768999840757,-500.0,0.0001796,2]
[402939116,1768999840766,-250.0,0.0001796,2]
[402939117,1768999840775,-500.0,0.0001796,2]
[402939118,1768999840785,-500.0,0.0001797,2]
[402939119,1768999840794,-1000.0,0.0001797,2]
[402939120,1768999840802,-694.631145,0.0001797,2]
[402939121,1768999840811,-1000.0,0.0001797,2]
[402939122,1768999840820,-1321.57411122,0.0001797,2]
[402939123,1768999840829,-500.0,0.0001797,2]
[402939124,1768999840839,-1000.0,0.0001797,2]
[402939125,1768999840848,-500.0,0.00017972,2]
[402939126,1768999840857,-500.0,0.00017972,2]
[402939127,1768999840866,-500.0,0.00017972,2]
[402939128,1768999840876,-551.14745199,0.00017972,2]
[402939129,1768999840885,-500.0,0.00017972,2]
[402939130,1768999840894,-500.0,0.00017972,2]
[402939131,1768999840903,-30553.0,0.00017973,2]
[402939132,1768999840912,-15055.0,0.00017973,2]
[402939133,1768999840922,-500.15189466,0.00017973,2]
[402939134,1768999840931,-500.0,0.00017973,2]
[402939135,1768999840941,-257.99612183,0.00017973,2]
[402939136,1768999840950,-500.0,0.00017973,2]
[402939137,1768999840960,-550.70733566,0.00017973,2]
[402939138,1768999840969,-150.0,0.00017973,2]
[402939139,1768999840978,-159.96427776,0.00017973,2]
[402939140,1768999840987,-500.0,0.00017973,2]
[402939141,1768999840996,-500.0,0.00017973,2]
[402939142,1768999841005,-500.0,0.00017973,2]
[402939143,1768999841014,-500.0,0.00017973,2]
[402939144,1768999841024,-500.0,0.00017973,2]
[402939145,1768999841033,-500.0,0.00017973,2]
[402939146,1768999841042,-500.0,0.00017973,2]
[402939147,1768999841052,-586.66357325,0.00017973,2]
[402939148,1768999841061,-500.0,0.00017973,2]
[402939149,1768999841070,-500.0,0.00017973,2]
[402939150,1768999841080,-500.0,0.00017973,2]
[402939151,1768999841089,-150.0,0.00017973,2]
[402939152,1768999841098,-500.0,0.00017982,2]
[402939153,1768999841107,-5888.0,0.00017983,2]
[402939154,1768999841116,-150.0,0.00017987,2]
[402939155,1768999841125,-707.94215069,0.0001799,2]
[402939156,1768999841134,-707.94215069,0.0001799,2]
[402939157,1768999841143,-1395.0,0.00017991,2]
[402939158,1768999841152,-151.0,0.00017997,2]
[402939159,1768999841162,-1037.30788483,0.00017998,5]
[402939160,1768999841171,-150.0,0.00017999,2]
[402939161,1768999841180,-150.0,0.00017999,2]
[402939162,1768999841190,-150.0,0.00017999,2]
[402939163,1768999841200,-284.69021713,0.00017999,2]
[402939164,1768999841209,-9127.0018228,0.00017999,2]
[402939165,1768999841218,-439378.9995665,0.00017999,2]
[402939166,1768999841227,-1086.0844155,0.00017999,5]
[402939167,1768999841236,-30813.5597783,0.00017999,2]
[402939168,1768999841245,-500.0,0.00017999,2]
[402939169,1768999841254,-500.0,0.00017999,2]
[402939170,1768999841263,-167.52941689,0.00017999,2]
[402939171,1768999841273,-1037.30788483,0.00017999,5]
[402939172,1768999841282,-1037.30788483,0.00017999,5]
[402939173,1768999841291,-1037.30788483,0.00017999,5]
[402939174,1768999841299,-521.74793843,0.00017999,2]
[402939175,1768999841308,-500.0,0.00017999,2]
[402939176,1768999841317,-500.0,0.00017999,2]
[402939177,1768999841326,-500.0,0.00017999,2]
[402939178,1768999841335,-500.0,0.00017999,2]
[402939179,1768999841343,-500.0,0.00017999,2]
[402939180,1768999841352,-500.0,0.00017999,2]
[402939181,1768999841361,-500.0,0.00017999,2]
[402939182,1768999841370,-500.0,0.00017999,2]
[402939183,1768999841379,-500.0,0.00017999,2]
[402939184,1768999841388,-500.0,0.00017999,2]
[402939185,1768999841396,-500.0,0.00017999,2]
[402939186,1768999841408,-500.0,0.00017999,2]
[402939187,1768999841418,-500.0,0.00017999,2]
[402939188,1768999841427,-500.0,0.00017999,2]
[402939189,1768999841436,-1702703.95230618,0.00018,2]
[402939190,1768999841563,-4435.886,0.00017775,2]
[402939191,1768999841576,-224.76049803,0.00017775,2]
[402939192,1768999841584,-1245.65106198,0.00018,2]
[402939193,1768999841595,-28980.0,0.00018,2]
[402939194,1768999841610,-1256.38003316,0.00018,2]
[402939195,1768999841620,-493.67561565,0.00018,2]
[402939196,1768999841630,-938.45915842,0.00018,2]
[402939197,1768999841641,-4574.1801,0.00018,2]
[402939198,1768999841684,-960.88427335,0.00018,2]
[402939199,1768999841696,-6971904.30357521,0.00018,2]
[402939200,1768999841705,-81738.79050946,0.00018,2]
[402939201,1768999841714,-344.31000005,0.00018,2]
[402939202,1768999841723,-41679.93492768,0.00018,2]
[402939203,1768999841734,-3424.26291047,0.00018,2]
[402939204,1768999841744,-539.63574858,0.00018,2]
[402939205,1768999841755,-505.60542929,0.00018,2]
[402939211,1768999843666,-841058.84063329,0.00018,2]
[402939212,1768999843676,-6549.7613617,0.00018,2]
[402939213,1768999843685,-253.00504588,0.00018,2]
[402939214,1768999843695,-240.861,0.00018,2]
[402939215,1768999843704,-1000.0,0.00018,2]
[402939216,1768999843714,-1000.0,0.00018,2]
[402939217,1768999843724,-376.197,0.00018,2]
[402939218,1768999843734,-2000.0,0.00018,2]
[402939219,1768999843745,-1000.0,0.00018,2]
[402939220,1768999843755,-1000.0,0.00018,2]
[402939221,1768999843764,-1000.0,0.00018,2]
[402939222,1768999843775,-1000.0,0.00018,2]
[402939223,1768999843785,-151.0,0.00018,2]
[402939224,1768999843795,-1264.0,0.00018,2]
[402939225,1768999843804,-1264.0,0.00018,2]
[402939226,1768999843817,-1000.0,0.00018,2]
[402939227,1768999843826,-1000.0,0.00018,2]
[402939228,1768999843835,-1000.0,0.00018,2]
[402939229,1768999843844,-688.718,0.00018,2]
[402939230,1768999843853,-500.0,0.00018015,2]
[402939231,1768999843863,-570.0,0.00018015,2]
[402939232,1768999843873,-500.0,0.00018028,2]
[402939233,1768999843883,-326.0,0.00018051,2]
[402939235,1768999843892,-195.0,0.0001806,2]
[402939236,1768999843899,-302.39197553,0.0001806,2]
[402939237,1768999843907,-667.90712893,0.0001806,2]
[402939238,1768999843915,-300.0,0.0001806,2]
[402939239,1768999843923,-600.0,0.0001806,2]
[402939240,1768999843932,-250.0,0.0001806,2]
[402939241,1768999843942,-622.31564229,0.0001806,2]
[402939242,1768999843951,-300.0,0.0001806,2]
[402939243,1768999843961,-2500.0,0.0001806,2]
[402939244,1768999843971,-300.0,0.0001806,2]
[402939245,1768999843980,-150.0,0.0001806,2]
[402939246,1768999843990,-250.0,0.0001806,2]
[402939247,1768999843999,-195.0,0.0001806,2]
[402939248,1768999844012,-500.0,0.0001807,2]
[402939249,1768999844021,-538.7434955,0.00018077,2]
[402939250,1768999844031,-500.0,0.00018083,2]
[402939251,1768999844040,-500.0,0.00018124,2]
[402939252,1768999844049,-200.0,0.00018125,2]
[402939253,1768999844058,-500.0,0.00018137,2]
[402939254,1768999844068,-1680.0,0.00018141,2]
[402939255,1768999844079,-897.86,0.00018141,2]
[402939256,1768999844088,-352.18132015,0.00018179,2]
[402939257,1768999844098,-329.03,0.00018186,2]
[402939258,1768999844107,-550.0,0.00018192,2]
[402939259,1768999844117,-1000.0,0.000182,2]
[402939260,1768999844126,-995.28,0.00018255,2]
[402939261,1768999844136,-5888.0,0.00018269,2]
[402939262,1768999844145,-5098.0,0.00018294,2]
[402939263,1768999844156,-553.43,0.00018306,2]
[402939264,1768999844166,-334.5472959,0.0001835,2]
[402939265,1768999844176,-332.2,0.00018385,2]
[402939266,1768999844187,-897.86,0.00018415,2]
[402939267,1768999844196,-2000.0,0.00018416,2]
[402939268,1768999844210,-443.0,0.00018434,2]
[402939269,1768999844220,-500.0,0.00018493,2]
[402939270,1768999844230,-200.0,0.00018499,2]
[402939271,1768999844239,-200.0,0.00018509,2]
[402939272,1768999844248,-461.93263446,0.00018521,2]
[402939273,1768999844257,-1139.69507159,0.00018521,2]
[402939274,1768999844267,-242.41470896,0.00018521,2]
[402939275,1768999844276,-1000.0,0.00018521,2]
[402939276,1768999844286,-1000.0,0.00018521,2]
[402939277,1768999844296,-561.91385606,0.00018521,2]
[402939278,1768999844305,-1000.0,0.00018521,2]